fUSD/lending_fUSD_20240921
["ID","MTS","AMOUNT","RATE_DAILY","PERIOD"]
[338868688,1726959043532,-500.0,0.00014878,2]
[338868689,1726959043543,-1031.811,0.00014879,2]
[338868690,1726959043553,-227.604,0.00014879,2]
[338868691,1726959043563,-2000.0,0.00014879,2]
[338868692,1726959043573,-500.0,0.00014879,2]
[338868693,1726959043583,-200.0,0.00014879,2]
[338868694,1726959043593,-652.6534,0.0001489,2]
[338868695,1726959043602,-157.85905439,0.000149,2]
[338868696,1726959043612,-12154.04895068,0.000149,2]
[338868697,1726959043621,-7500.0,0.000149,2]
[338868698,1726959043631,-188.96,0.000149,31]
[338868699,1726959043640,-188.96,0.000149,31]
[338868700,1726959043650,-188.96,0.000149,31]
[338868701,1726959043659,-188.96,0.000149,31]
[338868702,1726959043668,-188.96,0.000149,31]
[338868703,1726959043678,-188.96,0.000149,31]
[338868704,1726959043691,-188.96,0.000149,31]
[338868705,1726959043700,-188.96,0.000149,31]
[338868706,1726959043716,-188.96,0.000149,31]
[338868707,1726959043725,-188.96,0.000149,31]
[338868708,1726959043745,-188.96,0.000149,31]
[338868709,1726959043755,-188.96,0.000149,31]
[338868710,1726959043764,-188.96,0.000149,31]
[338868711,1726959043773,-188.96,0.000149,31]
[338868712,1726959043783,-188.96,0.000149,31]
[338868713,1726959043792,-188.96,0.000149,31]
[338868714,1726959043802,-1367.0,0.000149,2]
[338868715,1726959043811,-320.57782605,0.000149,2]
[338868716,1726959043821,-505.77123334,0.000149,2]
[338868717,1726959043830,-192.49457852,0.000149,2]
[338868718,1726959043839,-185.1291855,0.00014973,2]
[338868719,1726959043849,-186.8411335,0.0001499,2]
[338868720,1726959043858,-214.0282893,0.0001499,2]
[338868721,1726959043867,-241.2154451,0.0001499,2]
[338868722,1726959043876,-268.4026009,0.0001499,2]
[338868723,1726959043887,-295.5897568,0.0001499,2]
[338868724,1726959043896,-2268.5973166,0.0001499,2]
[338868725,1726959043905,-2598.6997281,0.0001499,2]
[338868726,1726959043916,-2928.8021397,0.0001499,2]
[338868727,1726959043926,-3258.9045512,0.0001499,2]
[338868728,1726959043941,-3589.0069628,0.0001499,2]
[338868729,1726959043950,-395.9537763,0.0001499,2]
[338868730,1726959043960,-453.5688036,0.0001499,2]
[338868731,1726959043969,-511.1838309,0.0001499,2]
[338868732,1726959043979,-568.7988583,0.0001499,2]
[338868733,1726959043989,-626.4138856,0.0001499,2]
[338868734,1726959043999,-151.61,0.0001499,2]
[338868735,1726959044008,-151.61,0.0001499,2]
[338868736,1726959044018,-159.6539776,0.00014993,2]
[338868737,1726959044029,-1938.494905,0.00014993,2]
[338868738,1726959044038,-338.3387489,0.00014993,2]
[338868739,1726959044047,-150.0,0.00014997,2]
[338868740,1726959044057,-512.62056128,0.00014998,2]
[338868741,1726959044068,-150.0,0.00014998,2]
[338868742,1726959044077,-419.25581753,0.00014999,2]
[338868743,1726959044086,-310.65278378,0.00014999,2]
[338868744,1726959044095,-867.0,0.00015,2]
[338868745,1726959044106,-32843.86990885,0.00015,2]
[338868746,1726959044121,-97568.38941996,0.00015,2]
[338868747,1726959044133,-2432.56701615,0.00015,2]
[338868756,1726959046078,-500.0,0.00014999,2]
[338868758,1726959046088,-500.0,0.00014999,2]
[338868760,1726959046099,-338.8375,0.00014999,2]
[338868761,1726959046176,-161.1625,0.00014999,2]
[338868762,1726959046186,-332.9480862,0.00014999,2]
[338868763,1726959046196,-500.0,0.00014999,2]
[338868764,1726959046205,-500.0,0.00014999,2]
[338868765,1726959046215,-500.0,0.00014999,2]
[338868766,1726959046224,-176.45965223,0.00014999,2]
[338868767,1726959046234,-130517.3452039,0.00015,2]
[338868768,1726959046243,-11088.3108812,0.00015,30]
[338868769,1726959046274,-79435.61582784,0.00015,30]
[338868770,1726959046285,-28322.04029524,0.00015,30]
[338868772,1726959067022,155.87,0.00010959,2]
[338868773,1726959126845,500.0,0.00011164,2]
[338868774,1726959165788,1050.0,0.00011,2]
[338868775,1726959610055,1027.59,0.00012014,2]
[338868776,1726959712217,166.48,0.00010959,2]
[338868777,1726960222561,1042.83,0.00011838,2]
[338868803,1726960232401,-153.29,0.00013771,2]
[338868804,1726960232411,-300.0,0.00013794,2]
[338868805,1726960232420,-23900.0,0.00013795,2]
[338868806,1726960232429,-250.0,0.00013795,2]
[338868807,1726960232438,-199.36,0.00013799,2]
[338868808,1726960232448,-250.0,0.00013804,2]
[338868809,1726960232457,-557.88,0.00013841,2]
[338868810,1726960232466,-220.32681932,0.00013898,2]
[338868811,1726960232475,-250.0,0.00013946,2]
[338868812,1726960232483,-2000.0,0.00013959,2]
[338868813,1726960232492,-219.74,0.00013969,2]
[338868814,1726960232501,-1000.0,0.00014003,2]
[338868815,1726960232510,-152.28,0.00014015,30]
[338868816,1726960232520,-303.93102272,0.000141,2]
[338868817,1726960232531,-101.60897728,0.000141,2]
[338868818,1726960232540,-1042.83,0.00014102,2]
[338868819,1726960232549,-169.04,0.00014173,2]
[338868820,1726960232558,-1144.87322523,0.000147,2]
[338868821,1726960232567,-3500.0,0.000148,2]
[338868822,1726960232575,-1405.95348004,0.0001488,2]
[338868825,1726960238544,-594.04651996,0.0001488,2]
[338868826,1726960238554,-500.0,0.0001488,2]
[338868827,1726960238563,-200.0,0.0001488,2]
[338868828,1726960238572,-5364.83656123,0.0001489,2]
[338868829,1726960238582,-953.254,0.00014899,2]
[338868830,1726960238591,-216.594,0.00014899,2]
[338868831,1726960238600,-150.0,0.00014899,2]
[338868832,1726960238610,-1000.0,0.000149,2]
[338868833,1726960238620,-1000.0,0.000149,2]
[338868834,1726960238629,-1064.0,0.000149,2]
[338868835,1726960238638,-13081.9951,0.000149,2]
[338868836,1726960238648,-2000.0,0.000149,2]
[338868837,1726960238657,-7500.0,0.000149,2]
[338868838,1726960238666,-9795.26135034,0.000149,2]
[338868839,1726960238676,-158.74,0.000149,31]
[338868840,1726960238688,-158.74,0.000149,31]
[338868841,1726960238697,-158.74,0.000149,31]
[338868842,1726960238706,-158.74,0.000149,31]
[338868843,1726960238715,-158.74,0.000149,31]
[338868844,1726960238725,-158.74,0.000149,31]
[338868845,1726960238735,-158.74,0.000149,31]
[338868846,1726960238744,-158.74,0.000149,31]
[338868847,1726960238753,-158.74,0.000149,31]
[338868848,1726960238764,-158.74,0.000149,31]
[338868849,1726960238773,-158.74,0.000149,31]
[338868850,1726960238783,-158.74,0.000149,31]
[338868851,1726960238792,-158.74,0.000149,31]
[338868852,1726960238801,-158.74,0.000149,31]
[338868853,1726960238810,-158.74,0.000149,31]
[338868854,1726960238820,-158.74,0.000149,31]
[338868855,1726960238829,-333.91913521,0.000149,2]
[338868856,1726960238838,-321.59463591,0.000149,2]
[338868857,1726960238848,-250.0,0.0001497,2]
[338868858,1726960238857,-250.0,0.0001497,2]
[338868859,1726960238867,-250.0,0.0001497,2]
[338868860,1726960238876,-251.26675044,0.0001497,2]
[338868861,1726960238886,-300.0,0.0001497,2]
[338868862,1726960238895,-418.93877082,0.0001497,2]
[338868863,1726960238905,-529.97456361,0.0001499,10]
[338868864,1726960238915,-5671.794937,0.0001499,2]
[338868865,1726960238925,-4794.1187724,0.0001499,2]
[338868866,1726960238935,-3916.4426077,0.0001499,2]
[338868867,1726960238945,-3038.766443,0.0001499,2]
[338868868,1726960238954,-2161.0902784,0.0001499,2]
[338868869,1726960238963,-848.6,0.0001499,3]
[338868870,1726960238972,-179.31398523,0.0001499,2]
[338868871,1726960238982,-151.72,0.0001499,2]
[338868872,1726960238991,-151.72,0.0001499,2]
[338868873,1726960239001,-151.72,0.0001499,2]
[338868874,1726960239010,-6549.4711017,0.00014993,2]
[338868875,1726960239020,-387.97572451,0.00014993,2]
[338868876,1726960239029,-150.0,0.00014994,2]
[338868877,1726960239038,-150.0,0.00014995,2]
[338868878,1726960239048,-150.0,0.00014996,2]
[338868879,1726960239058,-150.0,0.00014997,2]
[338868880,1726960239067,-150.0,0.00014998,2]
[338868881,1726960239076,-150.01,0.00014999,2]
[338868882,1726960239086,-1806.51972294,0.00014999,2]
[338868883,1726960239097,-150.0,0.00014999,2]
[338868884,1726960239108,-500.0,0.00014999,2]
[338868885,1726960239118,-500.0,0.00014999,2]
[338868886,1726960239128,-853.0,0.00015,2]
[338868887,1726960239139,-202369.79543394,0.00015,2]
[338868888,1726960239148,-2285911.94864459,0.00015,30]
[338868889,1726960239161,-1207.65874745,0.00015,30]
[338868890,1726960239172,-2434.39474356,0.00015,30]
[338868891,1726960239186,-3866.37289709,0.00015,30]
[338868892,1726960240368,-150.0,0.00014934,2]
[338868893,1726960240377,-1500.0,0.00014994,2]
[338868894,1726960240387,-29112.99999933,0.00015,30]
[338868895,1726960240598,-150.0,0.00014796,2]
[338868896,1726960240608,-150.0,0.0001484,2]
[338868897,1726960240618,-150.0,0.00014848,2]
[338868898,1726960240627,-150.0,0.00014986,2]
[338868899,1726960240636,-1860.09210136,0.00015,30]
[338868900,1726960240648,-854.84101679,0.00015,30]
[338868901,1726960240659,-379.02442167,0.00015,30]
[338869023,1726960243336,-277.4181732,0.000147,2]
[338869024,1726960243348,-515.44,0.000147,2]
[338869025,1726960243359,-264.23863378,0.000147,2]
[338869026,1726960243369,-150.0,0.0001478,2]
[338869027,1726960243380,-150.0,0.00014865,2]
[338869028,1726960243391,-263.01751522,0.00015,30]
[338869029,1726960243500,-503321.47362325,0.00015,30]
[338869030,1726960246279,-1000.0,0.00014993,2]
[338869031,1726960246290,-1000.0,0.00014993,2]
[338869032,1726960246301,-1000.0,0.00014993,2]
[338869033,1726960246312,-159.2672944,0.00014993,2]
[338869034,1726960246494,-840.7327056,0.00014993,2]
[338869035,1726960246503,-936.0,0.00014993,2]
[338869036,1726960246513,-29263.50802206,0.00015,30]
[338869037,1726960246525,-49204.24176642,0.00015,30]
[338869041,1726960249723,293.38,0.00010959,2]
[338869042,1726960391127,219.98,0.0001,2]
[338869043,1726960884585,938.54,0.00011823,2]
[338869044,1726960899676,179.36,0.00010959,2]
[338869045,1726960968209,1050.0,0.00011,2]
[338869050,1726961431468,-1142.44974172,0.00013638,2]
[338869051,1726961431480,-196.81025828,0.00013638,2]
[338869053,1726961431490,-153.29,0.00013699,2]
[338869054,1726961431500,-250.0,0.00013713,2]
[338869056,1726961431510,-250.0,0.00013718,2]
[338869058,1726961431519,-245.27,0.00013718,2]
[338869059,1726961431528,-164.41,0.00013735,2]
[338869060,1726961431537,-278.94,0.00013736,2]
[338869061,1726961431546,-1000.0,0.00013736,2]
[338869062,1726961431555,-150.0,0.00013738,2]
[338869063,1726961431565,-250.0,0.00013743,2]
[338869064,1726961431574,-300.0,0.00013823,2]
[338869065,1726961431583,-4464.41519698,0.00013824,2]
[338869066,1726961431594,-1440.43885463,0.00013824,2]
[338869067,1726961431607,-706.11031433,0.00013824,2]
[338869068,1726961431618,-1329.28402773,0.00013824,2]
[338869069,1726961431629,-1396.35356278,0.00013824,2]
[338869070,1726961431640,-2456.7,0.00013824,2]
[338869071,1726961431654,-2195.73008022,0.00013824,2]
[338869072,1726961431665,-262.70659263,0.00013824,2]
[338869073,1726961431684,-422.39062812,0.00013824,2]
[338869074,1726961431696,-3331.88002399,0.00013824,2]
[338869079,1726961437855,-457.382313,0.0001357,2]
[338869080,1726961437866,-5893.99071859,0.00013824,2]
[338869081,1726961437876,-239.94,0.00013881,2]
[338869082,1726961437886,-152.28,0.00013951,30]
[338869083,1726961437895,-1000.0,0.00013973,2]
[338869084,1726961437905,-938.54,0.00014087,2]
[338869085,1726961437915,-140.14574226,0.00014117,2]
[338869086,1726961439506,-9.85425774,0.00014117,2]
[338869087,1726961439516,-807.0,0.00014118,2]
[338869088,1726961439526,-1935.0,0.00014118,2]
[338869089,1726961439535,-236.92900762,0.00014118,2]
[338869090,1726961439626,-15.54299238,0.00014118,2]
[338869091,1726961439636,-3399.07,0.00014118,2]
[338869092,1726961439645,-150.0,0.00014118,2]
[338869093,1726961439655,-3288.865,0.00014118,2]
[338869094,1726961439664,-809.0,0.00014118,2]
[338869095,1726961439674,-558.0,0.00014118,2]
[338869096,1726961439683,-564.587,0.00014118,2]
[338869097,1726961439692,-168.22,0.00014175,2]
[338869098,1726961439702,-364.99,0.000142,2]
[338869099,1726961439711,-152.0,0.00014796,3]
[338869100,1726961439721,-442.4434,0.00014799,2]
[338869101,1726961439731,-3500.0,0.000148,2]
[338869102,1726961439743,-886.059,0.00014832,2]
[338869103,1726961439753,-207.786,0.00014832,2]
[338869104,1726961439763,-500.0,0.00014879,2]
[338869105,1726961439771,-2000.0,0.0001488,2]
[338869106,1726961439781,-500.0,0.0001488,2]
[338869107,1726961439790,-468.4969,0.00014899,2]
[338869108,1726961439800,-881.57352159,0.00014899,2]
[338869109,1726961439810,-881.57352152,0.00014899,2]
[338869110,1726961439820,-881.57352152,0.00014899,2]
[338869111,1726961439831,-881.57352152,0.00014899,2]
[338869112,1726961439841,-881.57352152,0.00014899,2]
[338869114,1726961439851,-881.57352152,0.000149,2]
[338869116,1726961439863,-881.57352152,0.000149,2]
[338869118,1726961439873,-4758.962032,0.000149,2]
[338869120,1726961439882,-500.0,0.000149,2]
[338869122,1726961439892,-4323.2982,0.000149,2]
[338869124,1726961439900,-1413.138,0.000149,2]
[338869126,1726961439909,-881.57352152,0.000149,2]
[338869128,1726961439919,-881.57352152,0.000149,2]
[338869130,1726961439928,-7500.0,0.000149,2]
[338869132,1726961439937,-881.57352152,0.000149,2]
[338869134,1726961439947,-174.70793814,0.000149,2]
[338869136,1726961439956,-153.28,0.000149,31]
[338869138,1726961439966,-153.28,0.000149,31]
[338869140,1726961439975,-153.28,0.000149,31]
[338869142,1726961439985,-153.28,0.000149,31]
[338869144,1726961439994,-153.28,0.000149,31]
[338869145,1726961440003,-153.28,0.000149,31]
[338869147,1726961440012,-153.28,0.000149,31]
[338869150,1726961440022,-153.28,0.000149,31]
[338869151,1726961440031,-153.28,0.000149,31]
[338869153,1726961440040,-153.28,0.000149,31]
[338869155,1726961440050,-153.28,0.000149,31]
[338869158,1726961440060,-153.28,0.000149,31]
[338869160,1726961440070,-153.28,0.000149,31]
[338869162,1726961440079,-153.28,0.000149,31]
[338869164,1726961440089,-153.28,0.000149,31]
[338869166,1726961440098,-153.28,0.000149,31]
[338869168,1726961440108,-153.28,0.000149,31]
[338869170,1726961440118,-405.16137302,0.000149,2]
[338869172,1726961440127,-3491.79149294,0.000149,2]
[338869174,1726961440137,-155.92795312,0.000149,2]
[338869176,1726961440146,-224.93266947,0.000149,2]
[338869178,1726961440156,-1232.4181313,0.0001499,2]
[338869180,1726961440166,-1234.2956877,0.0001499,2]
[338869182,1726961440175,-1236.1732441,0.0001499,2]
[338869184,1726961440184,-1238.0508005,0.0001499,2]
[338869185,1726961440194,-1239.9283569,0.0001499,2]
[338869187,1726961440203,-361.0666632,0.0001499,2]
[338869189,1726961440212,-361.0666632,0.0001499,2]
[338869191,1726961440221,-361.0666632,0.0001499,2]
[338869193,1726961440231,-361.0666632,0.0001499,2]
[338869195,1726961440240,-361.0666632,0.0001499,2]
[338869197,1726961440249,-151.55,0.0001499,2]
[338869199,1726961440259,-297.7913094,0.00014993,2]
[338869201,1726961440268,-150.0,0.00014993,2]
[338869203,1726961440277,-709.8701365,0.00014993,2]
[338869205,1726961440286,-1230.5405749,0.00014993,2]
[338869207,1726961440295,-361.0666632,0.00014993,2]
[338869209,1726961440304,-150.0,0.00014994,2]
[338869211,1726961440314,-150.0,0.00014995,2]
[338869213,1726961440323,-150.0,0.00014996,2]
[338869215,1726961440332,-150.0,0.00014997,2]
[338869217,1726961440342,-150.0,0.00014998,2]
[338869219,1726961440351,-1204.34648196,0.00014999,2]
[338869221,1726961440361,-500.0,0.00014999,2]
[338869223,1726961440371,-500.0,0.00014999,2]
[338869225,1726961440380,-500.0,0.00014999,2]
[338869227,1726961440392,-500.0,0.00014999,2]
[338869229,1726961440401,-500.0,0.00014999,2]
[338869231,1726961440411,-500.0,0.00014999,2]
[338869233,1726961440420,-500.0,0.00014999,2]
[338869235,1726961440429,-500.0,0.00014999,2]
[338869237,1726961440439,-500.0,0.00014999,2]
[338869239,1726961440448,-500.0,0.00014999,2]
[338869240,1726961440457,-500.0,0.00014999,2]
[338869242,1726961440466,-500.0,0.00014999,2]
[338869244,1726961440476,-500.0,0.00014999,2]
[338869246,1726961440485,-500.0,0.00014999,2]
[338869248,1726961440495,-500.0,0.00014999,3]
[338869250,1726961440504,-500.0,0.00014999,3]
[338869252,1726961440513,-500.0,0.00014999,2]
[338869254,1726961440523,-500.0,0.00014999,2]
[338869256,1726961440532,-500.0,0.00014999,2]
[338869258,1726961440541,-500.0,0.00014999,2]
[338869260,1726961440551,-500.000001,0.00014999,2]
[338869262,1726961440561,-500.0,0.00014999,2]
[338869265,1726961440572,-500.0,0.00014999,2]
[338869267,1726961440582,-500.0,0.00014999,2]
[338869269,1726961440592,-329.95,0.00014999,2]
[338869271,1726961440602,-500.0,0.00014999,2]
[338869273,1726961440611,-505.35,0.00014999,2]
[338869275,1726961440622,-500.0,0.00014999,2]
[338869277,1726961440640,-500.0,0.00014999,2]
[338869279,1726961440649,-500.0,0.00014999,2]
[338869281,1726961440658,-500.0,0.00014999,2]
[338869283,1726961440667,-500.0,0.00014999,2]
[338869285,1726961440677,-500.0,0.00014999,2]
[338869287,1726961440687,-500.0,0.00014999,2]
[338869289,1726961440696,-504.66,0.00014999,2]
[338869291,1726961440705,-589.76,0.00014999,2]
[338869293,1726961440714,-500.0,0.00014999,2]
[338869295,1726961440724,-500.0,0.00014999,2]
[338869297,1726961440733,-500.0,0.00014999,2]
[338869299,1726961440743,-500.0,0.00014999,2]
[338869301,1726961440752,-500.0,0.00014999,2]
[338869302,1726961440762,-500.0,0.00014999,2]
[338869304,1726961440772,-500.0,0.00014999,2]
[338869306,1726961440781,-500.0,0.00014999,2]
[338869308,1726961440790,-500.0,0.00014999,2]
[338869310,1726961440800,-554.29,0.00014999,2]
[338869312,1726961440811,-500.0,0.00014999,2]
[338869315,1726961440821,-500.0,0.00014999,2]
[338869317,1726961440830,-590.17,0.00014999,2]
[338869319,1726961440840,-500.0,0.00014999,2]
[338869321,1726961440851,-500.0,0.00014999,2]
[338869323,1726961440860,-500.0,0.00014999,2]
[338869325,1726961440872,-500.0,0.00014999,2]
[338869327,1726961440881,-585.65,0.00014999,2]
[338869328,1726961440890,-500.0,0.00014999,2]
[338869330,1726961440899,-500.0,0.00014999,2]
[338869332,1726961440908,-500.0,0.00014999,2]
[338869334,1726961440917,-500.0,0.00014999,2]
[338869336,1726961440927,-500.0,0.00014999,2]
[338869339,1726961440938,-150.44,0.00014999,2]
[338869340,1726961440947,-500.0,0.00014999,2]
[338869342,1726961440956,-500.0,0.00014999,2]
[338869344,1726961440965,-500.0,0.00014999,2]
[338869346,1726961440974,-500.0,0.00014999,2]
[338869348,1726961440984,-513.66,0.00014999,2]
[338869350,1726961440993,-500.0,0.00014999,2]
[338869352,1726961441002,-500.0,0.00014999,2]
[338869354,1726961441012,-500.0,0.00014999,2]
[338869356,1726961441022,-500.0,0.00014999,2]
[338869358,1726961441031,-500.0,0.00014999,2]
[338869361,1726961441040,-500.0,0.00014999,2]
[338869363,1726961441049,-500.0,0.00014999,2]
[338869365,1726961441058,-500.0,0.00014999,2]
[338869367,1726961441068,-500.0,0.00014999,2]
[338869369,1726961441079,-413.6,0.00014999,2]
[338869371,1726961441088,-500.0,0.00014999,2]
[338869373,1726961441097,-1001.6733,0.00014999,2]
[338869375,1726961441106,-500.0,0.00014999,2]
[338869377,1726961441115,-500.0,0.00014999,2]
[338869379,1726961441126,-500.0,0.00014999,2]
[338869381,1726961441135,-500.0,0.00014999,2]
[338869383,1726961441144,-500.0,0.00014999,2]
[338869384,1726961441154,-500.0,0.00014999,2]
[338869386,1726961441163,-500.0,0.00014999,2]
[338869388,1726961441172,-500.0,0.00014999,2]
[338869390,1726961441181,-500.0,0.00014999,2]
[338869392,1726961441190,-500.0,0.00014999,2]
[338869394,1726961441199,-500.0,0.00014999,2]
[338869395,1726961441209,-500.0,0.00014999,2]
[338869396,1726961441218,-500.0,0.00014999,2]
[338869397,1726961441227,-500.0,0.00014999,2]
[338869398,1726961441237,-500.0,0.00014999,2]
[338869399,1726961441246,-500.0,0.00014999,2]
[338869400,1726961441255,-500.0,0.00014999,2]
[338869401,1726961441265,-500.0,0.00014999,2]
[338869402,1726961441275,-500.0,0.00014999,2]
[338869403,1726961441284,-500.0,0.00014999,2]
[338869404,1726961441294,-500.0,0.00014999,2]
[338869405,1726961441303,-500.0,0.00014999,2]
[338869406,1726961441313,-500.0,0.00014999,2]
[338869407,1726961441322,-500.0,0.00014999,2]
[338869408,1726961441331,-500.0,0.00014999,2]
[338869409,1726961441341,-500.0,0.00014999,2]
[338869410,1726961441350,-635.15,0.00014999,2]
[338869411,1726961441359,-500.0,0.00014999,2]
[338869412,1726961441369,-500.0,0.00014999,2]
[338869413,1726961441378,-500.0,0.00014999,2]
[338869414,1726961441387,-500.0,0.00014999,2]
[338869415,1726961441398,-500.0,0.00014999,2]
[338869416,1726961441407,-500.0,0.00014999,2]
[338869417,1726961441416,-500.0,0.00014999,2]
[338869418,1726961441425,-500.0,0.00014999,2]
[338869419,1726961441434,-500.0,0.00014999,2]
[338869420,1726961441443,-500.0,0.00014999,2]
[338869421,1726961441453,-500.0,0.00014999,2]
[338869422,1726961441463,-253.37933882,0.00014999,2]
[338869423,1726961441472,-500.0,0.00014999,2]
[338869424,1726961441482,-500.0,0.00014999,2]
[338869425,1726961441491,-500.0,0.00014999,2]
[338869426,1726961441500,-500.0,0.00014999,2]
[338869427,1726961441509,-500.0,0.00014999,2]
[338869428,1726961441518,-500.0,0.00014999,2]
[338869429,1726961441527,-500.0,0.00014999,2]
[338869430,1726961441536,-500.0,0.00014999,2]
[338869431,1726961441545,-500.0,0.00014999,2]
[338869432,1726961441555,-500.0,0.00014999,2]
[338869433,1726961441564,-500.0,0.00014999,2]
[338869434,1726961441574,-500.0,0.00014999,2]
[338869435,1726961441583,-500.0,0.00014999,2]
[338869436,1726961441593,-500.0,0.00014999,2]
[338869437,1726961441602,-500.0,0.00014999,2]
[338869438,1726961441611,-500.0,0.00014999,2]
[338869439,1726961441621,-500.0,0.00014999,2]
[338869440,1726961441631,-500.0,0.00014999,2]
[338869441,1726961441640,-500.0,0.00014999,2]
[338869442,1726961441650,-500.0,0.00014999,2]
[338869443,1726961441659,-500.0,0.00014999,2]
[338869444,1726961441668,-500.0,0.00014999,2]
[338869445,1726961441677,-193.30715111,0.00014999,2]
[338869446,1726961441686,-500.0,0.00014999,2]
[338869447,1726961441695,-500.0,0.00014999,2]
[338869448,1726961441704,-500.0,0.00014999,2]
[338869449,1726961441714,-600.63,0.00014999,2]
[338869450,1726961441723,-531.59,0.00014999,2]
[338869451,1726961441732,-500.0,0.00014999,2]
[338869452,1726961441741,-500.0,0.00014999,2]
[338869453,1726961441750,-500.0,0.00014999,2]
[338869454,1726961441759,-500.0,0.00014999,2]
[338869455,1726961441768,-593.78,0.00014999,2]
[338869456,1726961441777,-500.0,0.00014999,2]
[338869457,1726961441786,-500.0,0.00014999,2]
[338869458,1726961441795,-500.0,0.00014999,2]
[338869459,1726961441804,-500.0,0.00014999,2]
[338869460,1726961441814,-500.0,0.00014999,2]
[338869461,1726961441823,-500.0,0.00014999,2]
[338869462,1726961441832,-500.0,0.00014999,2]
[338869463,1726961441841,-500.0,0.00014999,2]
[338869464,1726961441850,-500.0,0.00014999,2]
[338869465,1726961441860,-500.0,0.00014999,2]
[338869466,1726961441869,-500.0,0.00014999,2]
[338869467,1726961441878,-500.0,0.00014999,2]
[338869468,1726961441889,-500.0,0.00014999,2]
[338869469,1726961441900,-500.0,0.00014999,2]
[338869470,1726961441911,-500.0,0.00014999,2]
[338869471,1726961441921,-500.0,0.00014999,2]
[338869472,1726961441931,-500.0,0.00014999,2]
[338869473,1726961441941,-500.0,0.00014999,2]
[338869474,1726961441951,-500.0,0.00014999,2]
[338869475,1726961441960,-500.0,0.00014999,2]
[338869476,1726961441969,-500.0,0.00014999,2]
[338869477,1726961441979,-500.0,0.00014999,2]
[338869478,1726961441988,-500.0,0.00014999,2]
[338869479,1726961441998,-500.0,0.00014999,2]
[338869480,1726961442007,-500.0,0.00014999,2]
[338869481,1726961442016,-500.0,0.00014999,2]
[338869482,1726961442025,-500.0,0.00014999,2]
[338869483,1726961442035,-500.0,0.00014999,2]
[338869484,1726961442044,-500.0,0.00014999,2]
[338869485,1726961442053,-500.0,0.00014999,2]
[338869486,1726961442062,-500.0,0.00014999,2]
[338869487,1726961442071,-500.0,0.00014999,2]
[338869488,1726961442081,-500.0,0.00014999,2]
[338869489,1726961442090,-500.0,0.00014999,2]
[338869490,1726961442100,-500.0,0.00014999,2]
[338869491,1726961442109,-500.0,0.00014999,2]
[338869492,1726961442119,-500.0,0.00014999,2]
[338869493,1726961442129,-500.0,0.00014999,2]
[338869494,1726961442139,-500.0,0.00014999,2]
[338869495,1726961442148,-500.0,0.00014999,2]
[338869496,1726961442158,-500.0,0.00014999,2]
[338869497,1726961442168,-533.03,0.00014999,2]
[338869498,1726961442178,-500.0,0.00014999,2]
[338869499,1726961442188,-500.0,0.00014999,2]
[338869500,1726961442198,-500.0,0.00014999,2]